bitfinex-derivatives/quotes_ETHF0:USTF0_20250828
["timestamp","ask_amount","ask_price","bid_price","bid_amount"]
[1756414387229,0.4556,4465.5,4464.4,0.7462]
[1756414387425,2.0151,4465.9,4464.4,0.7462]
[1756414387626,0.22396,4465.8,4464.4,0.7462]
[1756414387825,0.9307,4465.7,4465.6,0.4883]
[1756414388025,0.9307,4465.7,4465.6,1.2345]
[1756414389226,0.4751,4465.5,4465.4,0.4883]
[1756414389432,0.9307,4465.5,4465.4,1.2345]
[1756414390531,0.4556,4466.9,4465.5,0.7462]
[1756414390729,0.9307,4466.7,4466.6,1.2345]
[1756414390932,0.4556,4467.1,4466.6,1.2345]
[1756414391231,0.9307,4466.7,4466.6,1.2345]
[1756414391830,0.4751,4466.7,4466.6,1.2345]
[1756414392332,0.4512,4467.8,4466.7,0.7462]
[1756414392836,0.228,4468.2,4466.7,0.7462]
[1756414393032,0.78607527,4468.1,4466.7,0.7462]
[1756414393239,0.40293,4466.9,4466.8,0.4883]
[1756414393436,0.40293,4466.9,4466.8,1.2345]
[1756414395740,0.40292,4467.0,4466.9,0.7462]
[1756414396042,0.40292,4467.0,4466.9,1.4625]
[1756414397740,0.87802,4467.0,4466.9,1.4625]
[1756414398242,0.40292,4467.0,4466.9,1.4625]
[1756414400245,0.87802,4467.0,4466.9,1.4625]
[1756414401247,0.40292,4467.0,4466.9,1.4625]
[1756414401448,0.87802,4467.0,4466.9,1.4625]
[1756414402241,0.40292,4467.0,4466.9,1.4625]
[1756414404151,1.32922,4467.0,4466.9,1.4625]
[1756414404848,0.40292,4467.0,4466.9,1.4625]
[1756414409551,0.40292,4467.0,4466.9,1.2345]
[1756414409752,0.40292,4467.0,4466.9,1.4625]
[1756414410148,1.32922,4467.0,4466.9,1.2345]
[1756414411147,0.9263,4466.6,4466.5,0.7163]
[1756414411347,1.32925,4466.6,4466.5,1.2345]
[1756414411553,0.40295,4466.6,4466.5,1.2345]
[1756414412251,0.40295,4466.6,4466.5,1.4625]
[1756414412855,1.00723,4467.3,4466.5,0.7163]
[1756414413054,0.40288,4467.4,4467.3,0.4883]
[1756414413252,0.40288,4467.4,4467.3,1.2345]
[1756414416456,0.40288,4467.4,4467.3,1.4625]
[1756414416653,0.4512,4467.7,4467.3,1.4625]
[1756414416855,1.00704,4468.2,4467.4,1.2505]
[1756414416856,0.40288,4467.5,4467.4,1.2505]
[1756414418356,0.40284,4467.8,4467.7,0.40285]
[1756414418661,0.40284,4467.8,4467.7,1.65335]
[1756414418960,0.40284,4467.8,4467.7,1.2505]
[1756414422556,1.00697,4468.4,4467.8,1.65334]
[1756414422557,0.40284,4467.9,4467.8,1.65334]
[1756414422756,0.40282,4468.1,4468.0,1.2505]
[1756414422954,0.40282,4468.1,4468.0,1.4785]
[1756414426761,0.40286,4467.6,4467.5,32.9933]
[1756414426959,0.40286,4467.6,4467.5,33.2213]
[1756414427161,0.83216,4467.6,4467.5,33.2213]
[1756414427564,0.83216,4467.6,4467.5,32.9933]
[1756414427866,0.83216,4467.6,4467.5,33.2213]
[1756414428369,0.83216,4467.6,4467.5,32.9933]
[1756414428567,0.83216,4467.6,4467.5,33.2213]
[1756414429171,0.83216,4467.6,4467.5,32.9933]
[1756414429366,0.40298,4466.3,4466.2,3.24891055]
[1756414429667,0.40298,4466.3,4466.2,1.4785]
[1756414429668,1.30298,4466.3,4466.2,1.4785]
[1756414430359,0.4293,4466.0,4465.9,32.24]
[1756414430670,0.4293,4466.0,4465.9,32.468]
[1756414430966,0.4293,4466.0,4465.9,33.2183]
[1756414431966,0.4293,4466.0,4465.9,0.228]
[1756414431967,4.9,4466.0,4465.9,0.228]
[1756414433066,0.9,4465.5,4465.4,0.7503]
[1756414433265,0.9,4465.5,4465.4,0.9783]
[1756414433667,0.4707,4465.5,4465.2,0.9783]
[1756414433871,0.4707,4465.3,4465.2,0.7282]
[1756414434072,0.9,4465.3,4465.2,0.7282]
[1756414434570,0.9,4465.3,4465.2,1.4785]
[1756414440371,0.40306,4465.4,4465.2,1.4785]
[1756414440372,0.40306,4465.4,4465.3,1.2505]
[1756414445465,1.30306,4465.4,4465.3,1.2505]
[1756414446071,0.40306,4465.4,4465.3,1.2505]
[1756414451066,1.28806,4465.4,4465.3,1.2505]
[1756414451873,0.87906,4465.4,4465.3,1.2505]
[1756414453874,0.40306,4465.4,4465.3,1.2505]
[1756414457078,1.28386,4465.4,4465.3,1.2505]
[1756414458074,0.87906,4465.4,4465.3,1.2505]
[1756414458276,0.40306,4465.4,4465.3,1.2505]
[1756414458777,1.28386,4465.4,4465.3,0.7503]
[1756414459580,1.28386,4465.4,4465.3,1.2164]
[1756414461578,1.28388,4465.2,4465.1,0.9054]
[1756414463078,0.476,4465.2,4464.4,34.24041055]
[1756414463282,1.149,4464.6,4464.5,0.6941]
[1756414464379,1.149,4464.6,4464.5,0.228]
[1756414464578,1.149,4464.6,4464.5,0.6941]
[1756414465187,1.149,4464.6,4464.5,1.3715]
[1756414467293,0.673,4465.4,4464.6,0.6774]
[1756414467589,1.149,4464.7,4464.6,1.1435]
[1756414468686,1.149,4464.7,4464.2,0.6774]
[1756414468888,1.149,4464.7,4464.3,0.228]
[1756414469085,0.476,4464.7,4464.1,0.9054]
[1756414469382,1.149,4464.2,4464.1,0.9054]
[1756414469587,1.149,4464.2,4464.1,1.3715]
[1756414470691,1.55217,4464.2,4464.1,1.3715]
[1756414477795,0.40317,4464.2,4464.1,1.3715]
[1756414481401,0.40317,4464.2,4464.1,1.1435]
[1756414481700,1.53917,4464.2,4464.1,1.1435]
[1756414483398,0.40327,4463.1,4463.0,41.4976]
[1756414483697,0.40327,4463.1,4463.0,1.4001]
[1756414483999,0.40327,4463.1,4463.0,1.62416]
[1756414484396,0.40327,4463.1,4463.0,1.1721]
[1756414484603,0.40326,4463.2,4463.1,0.6976]
[1756414484803,0.40326,4463.2,4463.1,1.1721]
[1756414485000,1.00794,4464.2,4463.1,5.39616]
[1756414485302,1.136,4465.7,4465.6,1.1721]
[1756414485501,1.136,4465.7,4465.6,0.9536522]
[1756414487596,1.53903,4465.7,4465.6,0.9536522]
[1756414492502,1.53903,4465.7,4464.4,0.40314]
[1756414492503,0.40313,4464.6,4464.4,0.40314]
[1756414492697,0.6894,4465.3,4463.5,1.99841055]
[1756414492902,0.6894,4465.1,4463.5,0.229]
[1756414493102,0.216,4465.3,4462.9,32.261]
[1756414493103,0.6894,4463.5,4462.9,32.261]
[1756414493297,1.136,4463.0,4462.9,32.261]
[1756414493495,1.136,4463.0,4462.9,32.9586]
[1756414493899,1.136,4463.0,4462.2,0.6976]
[1756414494094,1.136,4463.0,4461.3,2.7945347]
[1756414494095,0.6894,4462.9,4461.4,0.6976]
[1756414494306,1.136,4461.5,4461.4,1.4011]
[1756414495009,0.6894,4461.4,4460.6,0.9276]
[1756414495210,0.1812483,4461.9,4460.6,0.9276]
[1756414495405,1.60162717,4463.7,4459.4,1.99841055]
[1756414495406,0.6894,4460.6,4459.9,0.6976]
[1756414495709,0.4466,4459.9,4459.8,0.4745]
[1756414496008,0.6894,4459.8,4458.6,0.6976]
[1756414496205,1.20122038,4461.4,4458.6,0.6976]
[1756414496206,0.6894,4460.5,4458.7,0.6976]
[1756414497007,0.6894,4460.5,4458.7,1.1721]
[1756414497008,0.4466,4458.8,4458.7,1.1721]
[1756414497309,1.136,4458.8,4458.7,1.1721]
[1756414497906,0.4466,4458.8,4458.7,1.1721]
[1756414498405,0.6894,4459.2,4459.1,1.1721]
[1756414498609,1.136,4459.2,4458.5,0.232]
[1756414500312,0.40367,4458.6,4458.5,0.7065]
[1756414500814,0.40367,4458.6,4458.5,1.4041]
[1756414501005,0.40367,4458.6,4458.5,5.4041]
[1756414503007,0.40367,4458.6,4458.5,1.4041]
[1756414503207,0.40367,4458.6,4458.5,1.1721]
[1756414503408,1.53967,4458.6,4458.5,0.4745]
[1756414503706,10.08979,4459.6,4457.4,0.03903943]
[1756414503707,0.6894,4458.4,4457.5,1.1721]
[1756414503901,0.40367,4458.6,4458.4,0.4745]
[1756414504103,0.40367,4458.6,4458.5,1.1721]
[1756414510022,0.40365,4458.9,4458.5,0.4745]
[1756414510218,0.40366,4458.8,4458.7,0.4439]
[1756414510522,0.40366,4458.8,4458.7,1.1326]
[1756414510821,0.40176198,4458.8,4458.7,1.1326]
[1756414512426,1.1463,4458.8,4457.5,0.6887]
[1756414512616,1.1463,4458.8,4457.6,0.232]
[1756414512817,1.1463,4458.8,4457.7,0.6887]
[1756414513425,0.4661,4458.8,4457.8,0.40374]
[1756414513722,0.6802,4458.7,4457.9,0.6887]
[1756414514116,0.117,4460.0,4458.6,1.1326]
[1756414514317,0.6802,4459.9,4458.8,0.6887]
[1756414514518,0.6802,4459.9,4459.0,0.6887]
[1756414516422,1.1463,4459.9,4459.8,1.1326]
[1756414516823,1.1463,4459.9,4459.8,0.4439]
[1756414517616,1.1463,4459.9,4459.8,1.1326]
[1756414517917,0.6802,4461.8,4459.9,0.6887]
[1756414518116,0.6802,4461.6,4459.8,0.6887]
[1756414518318,0.6802,4461.4,4460.0,0.40354]
[1756414518516,0.6802,4461.2,4460.0,0.6887]
[1756414518721,0.6802,4462.1,4460.0,0.6887]
[1756414519023,0.6802,4461.9,4460.6,0.6887]
[1756414519324,1.5497,4461.6,4461.5,0.4439]
[1756414519626,1.5497,4461.6,4461.5,1.3326]
[1756414520220,1.5497,4461.6,4461.5,0.2]
[1756414520426,1.54974,4461.2,4461.1,0.4439]
[1756414520620,1.54974,4461.2,4461.1,0.6759]
[1756414520925,1.54974,4461.2,4461.1,1.3646]
[1756414522027,1.54977,4460.8,4460.7,0.4439]
[1756414522225,1.54977,4460.8,4460.7,1.3646]
[1756414522426,1.73988007,4460.8,4460.7,1.3646]
[1756414524629,1.33641007,4460.8,4460.3,0.6887]
[1756414524828,0.40358,4459.6,4459.5,0.4439]
[1756414525130,0.40358,4459.6,4459.5,1.3646]
[1756414525827,0.40357,4459.8,4459.5,1.3646]
[1756414526030,1.54984,4460.1,4460.0,0.4439]
[1756414526232,1.54984,4460.1,4459.5,0.232]
[1756414526233,1.1463,4459.6,4459.5,1.1326]
[1756414526425,1.1463,4459.6,4459.5,1.3646]
[1756414526930,1.54988,4459.6,4459.5,1.3646]
[1756414527126,1.74037282,4459.6,4459.5,0.6759]
[1756414527328,1.74037282,4459.6,4459.5,1.3646]
[1756414530624,0.59407282,4459.6,4459.5,1.3646]
[1756414530834,0.59411024,4459.6,4459.5,1.3646]
[1756414531434,1.74041024,4459.6,4459.5,1.3646]
[1756414531730,1.74042924,4459.6,4459.5,1.3646]
[1756414534336,0.59416881,4459.6,4459.5,5.3646]
[1756414534530,0.40358,4459.6,4459.5,5.3646]
[1756414534933,0.40356,4459.9,4459.7,0.6887]
[1756414535234,0.40356,4459.9,4459.8,1.1326]
[1756414535426,0.59413678,4459.9,4459.8,1.1326]
[1756414535834,0.19057678,4459.9,4459.8,1.1326]
[1756414536034,0.59412678,4459.9,4459.8,1.1326]
[1756414536528,0.19057678,4459.9,4459.8,1.53616]
[1756414536935,0.7,4461.0,4460.6,0.4559]
[1756414537132,0.59404293,4460.9,4460.8,1.1191]
[1756414540231,0.19058293,4460.9,4460.8,1.1191]
[1756414541132,0.40344,4461.2,4460.8,1.52256]
[1756414541333,0.59404183,4461.1,4461.0,0.4559]
[1756414541534,0.59404183,4461.1,4461.0,1.1191]
[1756414542333,0.5940454,4461.1,4461.0,1.1191]
[1756414543833,0.5940454,4461.1,4461.0,1.52255]
[1756414544343,1.7619454,4461.1,4461.0,1.1191]
[1756414546830,0.87138,4460.7,4460.6,1.1191]
[1756414547030,0.4679,4459.9,4459.8,0.85946]
[1756414547228,0.4679,4459.9,4459.8,1.09046]
[1756414547434,0.4679,4459.9,4459.8,41.89046]
[1756414547741,1.57144,4460.1,4460.0,1.1191]
[1756414551039,2.01664,4462.5,4460.0,1.1191]
[1756414551241,0.87143,4460.3,4460.2,1.1191]
[1756414551546,1.57143,4460.3,4460.2,1.1191]
[1756414552145,1.57143,4460.3,4460.2,1.52263]
[1756414553048,1.57143,4460.3,4460.2,1.1191]
[1756414553650,0.40353,4460.3,4460.2,1.1191]
[1756414553948,0.4035,4460.5,4460.4,0.4559]
[1756414554140,0.59441664,4460.5,4460.4,0.6869]
[1756414554541,0.59441664,4460.5,4460.4,1.3501]
[1756414554849,1.29441664,4460.5,4460.4,1.3501]
[1756414555046,1.76231664,4460.5,4460.4,1.3501]
[1756414555344,1.76231664,4460.5,4459.9,1.99259736]
[1756414555345,0.40355,4460.0,4459.9,2.44849736]
[1756414555548,1.57145,4460.0,4459.9,0.6869]
[1756414555748,1.57145,4460.0,4459.9,1.75365]
[1756414556046,0.87145,4460.0,4459.9,1.75365]
[1756414556950,0.7,4461.7,4460.0,0.6632]
[1756414557151,2.01668,4462.4,4460.5,1.5226]
[1756414557152,0.4035,4460.6,4460.5,1.5226]
[1756414557350,0.59443207,4460.6,4460.5,1.3491]
[1756414558652,1.70861,4461.2,4460.7,0.40348]
[1756414558855,1.57134,4461.2,4461.1,1.1191]
[1756414559051,1.76228075,4461.2,4461.1,1.3491]
[1756414561248,1.7623537,4461.2,4461.1,0.23]
[1756414561550,1.7623537,4461.2,4461.1,0.6859]
[1756414561849,1.7623537,4461.2,4461.1,0.23]
[1756414562250,1.76239814,4461.2,4461.1,1.75255]
[1756414562549,1.29449814,4461.2,4461.1,1.75255]
[1756414562847,0.19105814,4461.2,4461.1,2.00239593]
[1756414563048,0.40341,4461.5,4461.4,1.52252]
[1756414563255,0.59449702,4461.5,4461.4,1.52252]
[1756414563550,0.59449702,4461.5,4461.4,1.1191]
[1756414563944,1.76239702,4461.5,4461.4,1.1191]
[1756414565743,0.19108702,4461.5,4461.4,1.52252]
[1756414566648,0.19108702,4461.5,4461.4,1.75252]
[1756414566849,0.6832,4462.2,4461.9,0.40337]
[1756414567155,1.51735,4462.2,4462.1,1.0709]
[1756414567361,1.70829991,4462.2,4462.1,1.3009]
[1756414568048,1.70829991,4462.2,4462.1,1.70426]
[1756414568252,1.70829991,4462.2,4462.1,1.3009]
[1756414568455,1.70829991,4462.2,4462.1,1.70426]
[1756414568756,1.30494991,4462.2,4462.1,1.70426]
[1756414569258,1.70829991,4462.2,4462.1,1.70426]
[1756414569556,1.70829991,4462.2,4462.1,1.3009]
[1756414571454,1.70805676,4462.2,4462.1,1.3009]
[1756414573159,1.51735,4462.2,4462.1,1.3009]
[1756414573860,1.70797919,4462.2,4462.1,0.6662]
[1756414574060,0.4308,4461.6,4461.5,0.4362]
[1756414574262,1.114,4461.6,4461.5,1.3009]
[1756414574756,1.114,4461.6,4461.5,1.70431]
[1756414575156,1.5174,4461.6,4461.5,1.3009]
[1756414575764,1.5174,4461.6,4461.5,1.70431]
[1756414576063,1.5174,4461.6,4461.5,1.3009]
[1756414576261,1.5174,4461.6,4461.5,0.4362]
[1756414576458,1.51743,4461.3,4461.2,1.3352]
[1756414576760,1.51743,4461.3,4461.2,1.5652]
[1756414576955,1.00841,4462.1,4460.8,32.288]
[1756414576956,0.40346,4460.9,4460.8,32.288]
[1756414577261,1.08666,4460.9,4460.8,33.55617]
[1756414577460,1.08666,4460.9,4460.8,74.35617]
[1756414578460,0.6832,4460.9,4460.8,74.35617]
[1756414578762,0.4308,4461.1,4461.0,1.47435]
[1756414578964,1.51744,4461.1,4461.0,1.47435]
[1756414579162,1.51744,4461.1,4461.0,1.3009]
[1756414579564,1.51744,4461.1,4461.0,1.70435]
[1756414579859,1.51744,4461.1,4461.0,1.3009]
[1756414581166,1.51744,4461.1,4461.0,0.6662]
[1756414581666,1.51744,4461.1,4461.0,1.3009]
[1756414586868,1.08666,4460.9,4460.8,32.288]
[1756414587067,1.27850677,4460.9,4460.8,32.518]
[1756414588661,1.27850677,4460.9,4460.8,33.1527]
[1756414589065,1.27860938,4460.9,4460.8,33.1527]
[1756414592669,1.2785778,4460.9,4460.8,33.1527]
[1756414595970,1.2785778,4460.9,4460.8,32.288]
[1756414596177,5.5027478,4460.9,4460.8,32.517]
[1756414596472,5.2785778,4460.9,4460.8,32.517]
[1756414596966,5.7016778,4460.9,4460.8,0.229]
[1756414597567,1.7016778,4460.9,4460.8,0.229]
[1756414600877,1.7016778,4460.9,4460.8,1.3384]
[1756414602875,1.70157252,4460.9,4460.8,1.3384]
[1756414603070,0.40353,4460.1,4460.0,1.51294]
[1756414603275,0.40353,4460.1,4460.0,1.74194]
[1756414603466,0.40353,4460.1,4460.0,1.9246148]
[1756414603672,0.40353,4460.1,4460.0,1.1094]
[1756414603878,0.40353,4460.1,4460.0,1.3384]
[1756414604172,1.07223,4460.1,4460.0,1.3384]
[1756414604372,1.49533,4460.1,4460.0,1.3384]
[1756414605280,1.68652603,4460.1,4460.0,1.1094]
[1756414605469,1.68652603,4460.1,4460.0,0.8975]
[1756414605971,1.68652603,4460.1,4460.0,1.3384]
[1756414606379,1.68657051,4460.1,4460.0,1.3384]
[1756414609781,1.68657051,4460.1,4460.0,0.6699]
[1756414609976,1.49537,4459.7,4459.6,32.285]
[1756414610278,1.68661051,4459.7,4459.6,33.1825]
[1756414613075,1.68685467,4459.7,4459.6,33.1825]
[1756414616881,1.68687654,4459.7,4459.6,33.1825]
[1756414617982,1.68687654,4459.7,4459.6,32.514]
[1756414618182,1.68687654,4459.7,4459.6,32.285]
[1756414618486,1.68687654,4459.7,4459.6,33.1825]
[1756414619077,1.01817654,4459.7,4459.6,33.1825]
[1756414619381,0.59507654,4459.7,4459.6,33.1825]
[1756414619783,0.59176989,4459.7,4459.6,33.1825]
[1756414620182,0.59176989,4459.7,4459.6,32.9535]
[1756414620385,1.26046989,4459.7,4459.6,33.1825]
[1756414620579,1.26046989,4459.7,4459.6,32.514]
[1756414620787,1.26046989,4459.7,4459.6,33.1825]
[1756414621185,0.59176989,4459.7,4459.6,33.1825]
[1756414621386,1.26046989,4459.7,4459.6,33.1825]
[1756414621888,0.4231,4459.1,4459.0,0.6685]
[1756414622083,0.4231,4458.8,4458.7,3.10199736]
[1756414622386,1.49545,4458.8,4458.7,3.33099736]
[1756414622575,1.68691146,4458.8,4458.7,1.3384]
[1756414623176,1.68691146,4458.8,4458.2,40.8]
[1756414623177,0.40369,4458.4,4458.3,0.6685]
[1756414623477,1.07242,4458.1,4458.0,34.28659736]
[1756414623676,1.07242,4458.1,4457.1,0.4038]
[1756414623677,0.6687,4458.0,4457.2,0.6685]
[1756414623877,0.4231,4457.3,4456.7,0.6685]
[1756414624186,0.4231,4457.2,4457.1,1.1094]
[1756414624386,0.4231,4457.2,4457.1,1.3384]
[1756414624691,1.0918,4457.2,4457.1,1.3384]
[1756414628485,1.0918,4457.2,4457.1,0.229]
[1756414628991,1.28263297,4457.2,4457.1,0.229]
[1756414629187,1.0918,4457.2,4457.1,0.229]
[1756414629783,0.6296,4457.1,4455.9,0.6622]
[1756414629984,0.4255,4456.2,4456.1,1.1121]
[1756414630192,1.0551,4456.2,4456.1,1.3411]
[1756414630895,1.45899,4456.2,4456.1,1.3411]
[1756414633888,1.45899,4456.2,4456.1,0.229]
[1756414634894,0.4255,4455.5,4455.4,32.9642]
[1756414635092,0.4255,4455.5,4455.4,33.1932]
[1756414635489,1.0551,4455.5,4455.4,33.1932]
[1756414635690,1.0551,4455.5,4455.4,32.531]
[1756414637093,1.0551,4455.5,4455.4,33.1932]
[1756414638985,1.45905,4455.5,4455.4,32.531]
[1756414639588,1.45905,4455.5,4455.4,33.1932]
[1756414645795,0.40395,4455.5,4455.4,33.1932]
[1756414648401,1.3858608,4457.7,4456.8,0.7101]
[1756414648402,0.4255,4456.9,4456.8,0.7101]
[1756414648597,1.64869702,4456.9,4456.8,0.9391]
[1756414650100,1.20701385,4458.5,4456.8,5.16347]
[1756414650291,0.18992856,4458.4,4458.3,0.1334]
[1756414650496,0.6296,4458.9,4458.8,0.1334]
[1756414650697,0.6296,4458.9,4458.8,0.2908]
[1756414650896,1.0551,4458.9,4458.8,0.2908]
[1756414651204,1.0551,4458.9,4458.8,0.074]
[1756414651405,1.0551,4458.9,4458.8,0.2908]
[1756414651903,1.0551,4458.4,4458.3,0.229]
[1756414652201,1.0551,4458.4,4458.3,0.3624]
[1756414652395,1.0551,4458.4,4458.3,0.4458]
[1756414655121,0.6296,4460.0,4458.6,0.40367]
[1756414655306,0.78610665,4459.9,4458.7,0.3124]
[1756414655506,0.6296,4459.7,4458.7,0.3124]
[1756414655812,0.22424,4460.1,4458.7,0.3124]
[1756414655813,0.6296,4459.5,4458.7,0.3124]
[1756414656001,0.40365,4458.9,4458.8,0.1334]
[1756414656196,1.02935,4458.9,4458.8,0.2029]
[1756414656805,0.6257,4458.9,4458.8,0.2029]
[1756414657000,0.40361,4459.3,4459.2,0.1112]
[1756414657303,1.46241,4459.3,4459.2,0.4097]
[1756414657806,0.4331,4458.4,4458.3,0.1807]
[1756414658010,0.4331,4458.4,4458.3,0.4097]
[1756414658011,1.0588,4458.4,4458.3,0.4097]
[1756414659310,0.40369,4458.5,4458.4,0.1807]
[1756414659913,1.02937,4458.7,4458.5,0.0695]
[1756414660101,1.02937,4458.7,4458.6,0.1807]
[1756414660304,1.46247,4458.7,4458.6,0.1807]
[1756414661106,0.17806426,4460.7,4458.6,0.1807]
[1756414661406,0.40362,4459.2,4459.1,0.1112]
[1756414661608,0.40362,4459.2,4459.1,0.2667]
[1756414662111,1.46242,4459.2,4459.1,0.1807]
[1756414662312,0.40366,4458.7,4458.6,0.51487]
[1756414662513,1.02936,4458.7,4458.6,0.74387]
[1756414662811,1.46246,4458.7,4458.6,0.4097]
[1756414663415,1.46255,4457.7,4457.6,0.1807]
[1756414663613,1.46255,4457.7,4457.6,0.4097]
[1756414664702,0.40372,4458.1,4457.9,0.1112]
[1756414665011,1.02942,4458.1,4458.0,0.1807]
[1756414665212,1.46252,4458.1,4458.0,0.1807]
[1756414665409,0.6257,4458.4,4458.1,0.0695]
[1756414665610,0.4037,4458.3,4458.2,0.4107]
[1756414665806,1.02937,4458.6,4458.5,0.1112]
[1756414666005,1.02937,4458.6,4458.5,0.1807]
[1756414666210,1.46247,4458.6,4458.5,0.1807]
[1756414669617,0.8368,4458.3,4458.2,0.3412]
[1756414669809,1.4625,4458.3,4458.2,0.4107]
[1756414671916,1.00903,4459.3,4458.2,6.66699313]
[1756414672219,1.0588,4458.8,4458.7,0.1807]
[1756414672419,1.0588,4458.8,4458.7,40.9807]
[1756414672815,1.46245,4458.8,4458.7,40.9807]
[1756414673019,1.46249,4458.4,4458.3,0.1112]
[1756414673214,1.46249,4458.4,4458.3,0.3402]
[1756414673817,1.46249,4458.4,4458.3,0.229]
[1756414674721,0.40372,4458.1,4458.0,40.8695]
[1756414674914,1.02942,4458.1,4458.0,41.0985]
[1756414676118,1.02942,4458.1,4458.0,40.8695]
[1756414676314,1.02942,4458.1,4458.0,41.0985]
[1756414677119,1.02942,4458.1,4458.0,40.8695]
[1756414677321,1.02942,4458.1,4458.0,41.029]
[1756414677517,1.02942,4458.1,4458.0,41.0985]
[1756414678612,1.02942,4458.1,4458.0,41.50223]
[1756414678922,1.02942,4458.1,4458.0,41.0985]
[1756414679121,1.21695941,4458.1,4458.0,41.0985]
[1756414679824,0.59125941,4458.1,4458.0,41.0985]
[1756414680024,0.18753941,4458.1,4458.0,41.50223]
[1756414680223,0.59125941,4458.1,4458.0,41.50223]
[1756414680418,0.59125941,4458.1,4458.0,41.0985]
[1756414680723,1.21695941,4458.1,4458.0,41.50223]
[1756414681023,0.59125941,4458.1,4458.0,41.50223]
[1756414683427,1.46246,4458.7,4458.6,0.1807]
[1756414683628,1.64998955,4458.7,4458.6,0.4097]
[1756414684226,1.65000165,4458.7,4458.6,0.4097]
[1756414684428,1.65000779,4458.7,4458.6,0.4097]
[1756414686426,1.65000779,4458.7,4458.6,0.81337]
[1756414686427,1.24634779,4458.7,4458.6,0.81337]
[1756414686632,0.18754779,4458.7,4458.6,6.9485185]
[1756414686934,0.40363,4459.1,4459.0,0.52454]
[1756414687131,0.59121683,4459.1,4459.0,0.75354]
[1756414687527,0.40363,4459.1,4459.0,0.75354]
[1756414687728,1.02193,4459.1,4459.0,0.3499]
[1756414688235,1.44293,4459.1,4459.0,0.3499]
[1756414690137,1.44293,4459.1,4459.0,0.75354]
[1756414690834,1.44293,4459.1,4459.0,0.229]
[1756414692335,1.44294,4458.9,4458.8,0.47805]
[1756414692537,1.44294,4458.9,4458.8,0.70705]
[1756414692737,1.44294,4458.9,4458.8,0.82519592]
[1756414693942,1.44294,4458.9,4458.8,0.59619592]
[1756414694142,1.44294,4458.9,4458.8,0.82519592]
[1756414695339,0.40366,4458.7,4458.6,32.302]
[1756414695546,1.02196,4458.7,4458.6,32.531]
[1756414698944,5.02196,4458.7,4458.6,32.302]
[1756414699243,1.44306,4457.6,4457.5,0.4721]
[1756414699448,1.44306,4457.6,4457.5,0.7011]
[1756414699642,1.6336469,4457.6,4457.5,41.2721]
[1756414699948,1.0221,4457.2,4457.1,34.91132621]
[1756414700142,1.0221,4457.2,4457.1,33.1251]
[1756414700342,1.0221,4457.2,4457.1,73.9251]
[1756414700947,1.0221,4457.2,4457.1,33.1251]
[1756414701148,1.0221,4457.2,4457.1,32.531]
[1756414701348,1.21254804,4457.2,4457.1,32.531]
[1756414701543,1.21254804,4457.2,4457.1,33.1251]
[1756414703149,1.0221,4457.2,4457.1,33.1251]
[1756414704745,1.0221,4457.2,4457.1,32.302]
[1756414704951,1.0221,4457.2,4457.1,32.531]
[1756414705248,1.2123288,4457.2,4457.1,32.531]
[1756414707952,1.21219848,4457.2,4457.1,32.531]
[1756414708849,1.21219848,4457.2,4457.1,32.302]
[1756414709053,1.21219848,4457.2,4457.1,32.531]
[1756414709546,1.21219848,4457.2,4457.1,33.1251]
[1756414713453,0.59389848,4457.2,4457.1,33.1251]
[1756414713654,1.21219848,4457.2,4457.1,33.1251]
[1756414714455,1.0221,4457.2,4457.1,33.1251]
[1756414715357,0.40373,4458.0,4457.9,0.5941]
[1756414715554,0.59361106,4458.0,4457.9,1.2525]
[1756414715752,0.40373,4458.0,4457.9,1.2525]
[1756414718355,0.40371,4458.2,4457.9,1.65623]
[1756414718557,0.40372,4458.1,4458.0,0.6259]
[1756414718756,0.40372,4458.1,4458.0,1.0518]
[1756414720654,1.61076888,4458.1,4458.0,1.2808]
[1756414722557,0.59376888,4458.1,4458.0,1.2808]
[1756414723066,1.21096888,4458.1,4458.0,1.2808]
[1756414723762,0.59376888,4458.1,4458.0,1.2808]
[1756414724452,1.21096888,4458.1,4458.0,1.2808]
[1756414725064,1.02092,4458.1,4458.0,1.2808]
[1756414725256,1.61820797,4458.1,4458.0,1.2808]
[1756414725752,0.60120797,4458.1,4458.0,1.2808]
[1756414726157,0.60121233,4458.1,4458.0,1.2808]
[1756414726656,1.61821233,4458.1,4458.0,1.2808]
[1756414727661,0.60121233,4458.1,4458.0,1.2808]
[1756414728151,0.60121233,4458.1,4458.0,0.229]
[1756414728152,1.61821233,4458.1,4458.0,0.229]
[1756414730665,0.80354,4457.9,4457.8,0.4259]
[1756414730858,1.61823233,4457.9,4457.8,0.229]
[1756414731558,0.40379,4457.3,4457.2,0.6259]
[1756414731753,1.02101,4457.1,4457.0,41.4259]
[1756414731959,1.21850233,4457.1,4457.0,41.6549]
[1756414732865,1.61830233,4457.1,4457.0,1.2808]
[1756414733054,1.61830233,4457.1,4457.0,1.0518]
[1756414733259,1.61830233,4457.1,4457.0,1.2808]
[1756414733670,0.19749233,4457.1,4457.0,1.2808]
[1756414733970,0.4038,4457.2,4457.1,1.0518]
[1756414734263,0.60137648,4457.2,4457.1,1.0518]
[1756414734466,0.19757648,4457.2,4457.1,3.96318838]
[1756414734866,0.81477648,4457.2,4457.1,1.2808]
[1756414735568,0.19760639,4457.2,4457.1,1.2808]
[1756414736365,1.0093,4458.1,4457.3,0.40379]
[1756414736564,0.6172,4457.9,4457.8,0.4259]
[1756414736766,0.40374,4457.9,4457.8,1.1435]